Cogmind - Beta 11.1 @@@ ROGUE MODE // 2022.10.15 @ 20:57:57 Player: darki Result: Destroyed by H-88 Terminator with KE Penetrator Performance ------------- Evolutions (9) 4500 Regions Visited (27) 5400 Robots Destroyed (108) 540 Value Destroyed (5923) 5923 Prototype IDs (12) 240 Alien Tech Used (0) 0 Bonus (9258) 9258 TOTAL SCORE: 25861 Bonus ------- High Alert Combat Kills 1337 Follower Combat Kills 921 Entered DSFs 1500 Met Warlord at Base 500 MAIN.C Attacked Warlord 500 Met R17 at Cetus 500 Met Warlord at Research 2000 Invited to Help at Command 2000 Cogmind --------- Core Integrity 0/1600 Matter 280/300 Energy 12/100 System Corruption 26% Temperature Warm (104) Movement Core (250) Ox4 Location -1/Access Parts ------- > --- POWER (4) -------- (None) > --- PROPULSION (7) --- (None) > --- UTILITY (10) ----- Advanced Signal Interpreter Experimental Core Analyzer ECM Suite > --- WEAPON (4) ------- Enhanced Nova Cannon > --- INVENTORY (5) ---- Light Antimatter Reactor Micro Antimatter Reactor Improved Energy Well (400) Peak State ------------ > --- POWER ------------ Light Antimatter Reactor Particle Reactor Light Quantum Reactor > --- PROPULSION ------- Armored Heavy Treads Biometal Heavy Treads Biometal Heavy Treads > --- UTILITY ---------- Advanced Coolant Injector Huge Storage Unit Improved Energy Well Improved Energy Well Advanced Signal Interpreter Experimental Core Analyzer Advanced Weapon Cycler Experimental ECM Suite Heavy Armor Plating > --- WEAPON ----------- Improved Potential Cannon Improved Potential Cannon > --- INVENTORY -------- Light Antimatter Reactor Armored Heavy Treads Armored Heavy Treads Biometal Heavy Treads Improved Antigrav System Improved Antigrav System Improved Antigrav System Improved Antigrav System Improved Antigrav System Combat Antigrav System Advanced Cooling System Advanced Coolant Injector Experimental Reaction Control System Improved Phase Shifter Quantum Rifle [Rating: 200] Favorites ----------- Power Light Antimatter Reactor Engine Ion Engine Power Core Nuclear Core Reactor Light Antimatter Reactor Propulsion Linear Gravjet Treads Armored Heavy Treads Leg Aluminum Leg Hover Unit Linear Gravjet Flight Unit Xenon Bombardment Thruster Utility Reflective Plating Device Advanced Coolant Injector Storage Small Storage Unit Processor Improved Armor Integrity Analyzer Hackware Hacking Suite Protection Reflective Plating Weapon Katana Energy Gun Enhanced Quantum Rifle Energy Cannon Improved Potential Cannon Ballistic Gun Assault Rifle Special Weapon Mining Laser Impact Weapon Heavy Flail Slashing Weapon Katana Piercing Weapon Force Lance Build | -11 -10 -9 -9 -9 -8 -8 -7 -7 -6 -6 -6 -6 -6 -6 -6 -5 -5 -4 -4 -4 -4 -3 -3 -3 -2 -2 -1 ------- Run | Scr Mat Mat Min Exi Min Mat Fac DSF Fac Was Fac Ext Cet Arc Hub Fac DSF Fac Upp Upp War Pro Res DSF Res Tes Acc Slots Evolved 18 | . . 2 . . . 2 2 . 2 . . . . . . 2 . 2 . . . . 2 . 2 . 2 Power 3 | . . . . . . . 1 . . . . . . . . . . 1 . . . . . . . . 1 Propulsion 5 | . . . . . . 1 . . 1 . . . . . . 1 . 1 . . . . . . . . 1 Utility 8 | . . 2 . . . 1 1 . 1 . . . . . . 1 . . . . . . . . 2 . . Weapon 2 | . . . . . . . . . . . . . . . . . . . . . . . 2 . . . . Parts Attached 189 | . 11 7 . . 1 11 2 3 3 . 1 . 5 6 7 3 7 4 4 3 8 2 2 18 15 29 37 Power 33 | . 1 1 . . . 1 . 1 1 . . . 2 1 . . . 1 . . 2 . . 3 3 9 7 Engine 1 | . 1 . . . . . . . . . . . . . . . . . . . . . . . . . . Core 7 | . . 1 . . . 1 . 1 1 . . . 2 1 . . . . . . . . . . . . . Reactor 25 | . . . . . . . . . . . . . . . . . . 1 . . 2 . . 3 3 9 7 Propulsion 56 | . 2 2 . . . 5 . . 1 . 1 . 2 5 3 1 6 3 3 1 . . . 4 3 4 10 Treads 14 | . 2 1 . . . . . . . . . . . . . . . . . . . . . 3 3 4 1 Leg 1 | . . . . . . . . . . . . . . . . . . . . . . . . 1 . . . Wheel . | . . . . . . . . . . . . . . . . . . . . . . . . . . . . Hover 32 | . . . . . . 5 . . 1 . 1 . 2 . 1 . 6 3 3 1 . . . . . . 9 Flight 9 | . . 1 . . . . . . . . . . . 5 2 1 . . . . . . . . . . . Utility 61 | . 1 2 . . 1 5 . 2 1 . . . 1 . 4 1 1 . 1 2 1 . 1 4 9 10 14 Device 30 | . 1 . . . . 2 . 1 . . . . . . 4 . . . . 1 . . . 4 5 5 7 Storage 5 | . . . . . . . . . . . . . . . . . 1 . . . . . . . 2 2 . Processor 10 | . . . . . . 3 . . 1 . . . . . . . . . 1 1 1 . 1 . . 1 1 Hackware 2 | . . . . . . . . . . . . . 1 . . 1 . . . . . . . . . . . Protection 14 | . . 2 . . 1 . . 1 . . . . . . . . . . . . . . . . 2 2 6 Artifact . | . . . . . . . . . . . . . . . . . . . . . . . . . . . . Weapon 39 | . 7 2 . . . . 2 . . . . . . . . 1 . . . . 5 2 1 7 . 6 6 Energy Gun 15 | . 3 . . . . . . . . . . . . . . . . . . . 2 . . 4 . 3 3 Energy Cannon 11 | . . . . . . . . . . . . . . . . . . . . . 3 2 . 2 . 3 1 Ballistic Gun 3 | . 2 . . . . . . . . . . . . . . . . . . . . . . 1 . . . Ballistic Cannon . | . . . . . . . . . . . . . . . . . . . . . . . . . . . . Launcher . | . . . . . . . . . . . . . . . . . . . . . . . . . . . . Special Weapon 2 | . 2 . . . . . . . . . . . . . . . . . . . . . . . . . . Impact Weapon 1 | . . . . . . . 1 . . . . . . . . . . . . . . . . . . . . Slashing Weapon 5 | . . 2 . . . . 1 . . . . . . . . 1 . . . . . . . . . . 1 Piercing Weapon 2 | . . . . . . . . . . . . . . . . . . . . . . . 1 . . . 1 Special Melee Weapon . | . . . . . . . . . . . . . . . . . . . . . . . . . . . . Unidentified Prototypes 10 | . . 1 . . . 1 . . . . . . . . . . . . . . 2 . . . 1 5 . Parts Lost 108 | . 4 . . . 1 1 . 1 . . . . 5 14 8 . 4 1 3 1 1 1 . 4 . 21 38 Power 18 | . . . . . . . . 1 . . . . 2 3 . . . . . . . . . 1 . 7 4 Propulsion 40 | . 1 . . . . 1 . . . . . . 2 5 5 . 3 1 3 1 1 1 . . . 4 12 Utility 33 | . . . . . 1 . . . . . . . 1 4 3 . . . . . . . . 2 . 6 16 Weapon 17 | . 3 . . . . . . . . . . . . 2 . . 1 . . . . . . 1 . 4 6 Highest Loss Streak 22 | . 3 . . . 1 1 . 1 . . . . 4 14 6 . 4 1 2 1 1 1 . 2 . 13 22 To Critical Strikes . | . . . . . . . . . . . . . . . . . . . . . . . . . . . . Average Slot Usage (%) 80 | . 88 95 100 100 99 95 84 86 100 100 100 100 97 68 34 14 26 31 50 50 67 61 51 71 81 71 71 Core 4 | . . 9 11 11 11 9 7 6 13 13 13 13 11 6 . . . . . . . . . . . . . Reactor 5 | . . . . . . . . . . . . . . . . . . . 5 5 6 9 4 8 13 12 13 Treads 9 | . 6 21 22 22 22 2 . . . . . . . . . . . . . . . . . 11 12 12 8 Hover 9 | . . . . . . 21 23 23 26 26 26 26 25 15 . . 16 19 30 25 26 19 14 2 . . 4 Device 11 | . 4 11 11 11 11 9 7 12 13 13 13 13 13 7 8 . . . . . 5 5 4 13 24 12 11 Storage 7 | . 14 11 11 11 11 9 7 7 6 6 6 6 6 6 3 . 1 5 5 5 5 5 4 2 1 10 10 Processor 7 | . . . . . . 11 15 7 13 13 13 13 13 10 4 . . . 4 9 11 15 15 15 8 8 8 Hackware 1 | . . . . . . . . . . . . . 1 6 4 2 5 5 5 5 5 5 4 1 . . . Protection 8 | . . 18 22 22 21 13 7 13 13 13 13 13 10 2 . . . . . . . . . . 3 2 6 Energy Gun 3 | . 10 . . . . . . . . . . . . . . . . . . . 2 . . 7 17 4 2 Energy Cannon 1 | . . . . . . . . . . . . . . . . . . . . . 4 . . 2 . 5 3 Slashing Weapon 7 | . . 17 22 22 22 18 13 15 13 13 13 13 13 7 . 5 1 . . . . . . . . . . Naked Turns 96 | . . . . . . . . . . . . . . . 96 . . . . . . . . . . . . Heaviest Build 205 | 14 15 25 25 25 25 25 22 24 29 29 29 29 29 25 11 3 5 21 21 22 74 34 26 64 191 197 205 Greatest Support 225 | 20 40 40 40 40 40 40 24 24 32 32 32 32 32 32 24 6 40 30 38 36 36 27 27 180 225 225 210 Greatest Overweight (x) 3 | . 1 1 . . . 3 . . . . . . 1 . 3 . . . . . 2 1 . 1 1 1 2 Average Overweight (x) . | . . . . . . . . . . . . . . . . . . . . . . . . . . . . Largest Inventory Capacity 25 | 8 8 8 8 8 8 8 8 8 8 8 8 8 8 8 8 5 8 8 8 8 8 8 8 8 25 25 25 Average Capacity 10 | 8 8 8 8 8 8 8 8 8 8 8 8 8 8 8 6 5 6 8 8 8 8 8 8 6 11 25 21 Most Carried 24 | 6 8 8 7 7 8 8 8 8 7 6 6 6 8 7 3 2 8 8 5 3 8 8 8 8 24 24 16 Average Carried 7 | 6 6 7 7 7 7 7 8 7 5 5 6 6 6 6 1 1 4 7 4 2 6 7 8 5 7 17 11 Final Capacity 25 | 8 8 8 8 8 8 8 8 8 8 8 8 8 8 8 5 5 8 8 8 8 8 8 8 5 25 25 5 Final Carried 24 | 6 8 7 7 7 8 8 8 8 5 6 6 6 7 1 3 1 8 5 3 1 8 8 8 2 24 10 3 Class Distribution -------------------- 52% | Mutant 9% | Generator-Tank 8% | Generator-Skirmisher 7% | Generator-Gunner 5% | Sprinter 4% | Scout 4% | Scavenger-Mutant Dominant Class ---------------- Mutant | -10/Materials Mutant | -9/Materials Mutant | -9/Mines Mutant | -9/Exiles Mutant | -8/Mines Mutant | -8/Materials Scout | -7/Factory Mutant | -7/DSF Mutant | -6/Factory Mutant | -6/Waste Mutant | -6/Factory Mutant | -6/Extension Mutant | -6/Cetus Scavenger-Mutant | -6/Archives Mutant | -6/Hub_04(d) Mutant | -5/Factory Mutant | -5/DSF Mutant | -4/Factory Sprinter | -4/Upper Caves Sprinter | -4/Upper Caves Mutant | -4/Warlord Mutant | -3/Proximity Caves Scout | -3/Research Assassin | -3/DSF Generator-Tank | -2/Research Generator-Gunner | -2/Testing Generator-Gunner | -1/Access Resources | -11 -10 -9 -9 -9 -8 -8 -7 -7 -6 -6 -6 -6 -6 -6 -6 -5 -5 -4 -4 -4 -4 -3 -3 -3 -2 -2 -1 ----------- Run | Scr Mat Mat Min Exi Min Mat Fac DSF Fac Was Fac Ext Cet Arc Hub Fac DSF Fac Upp Upp War Pro Res DSF Res Tes Acc Matter Collected 1834 | 200 85 105 . . 25 95 . 2 . 83 10 . 45 35 . . 8 . 43 79 179 28 . 211 160 193 248 Remotely . | . . . . . . . . . . . . . . . . . . . . . . . . . . . . Salvage Created 4865 | . 244 221 . . 69 240 . . . 221 97 . 76 77 . . . . . . . 45 . 313 266 1819 1177 Parts 224 | . 11 24 . . 10 12 . . . 5 10 . 6 1 . . . . . . . 3 . 16 5 56 65 Haulers Intercepted 2 | . . . . . . 1 . . . . . . . . . . . . . . . . . . . 1 . Recyclers Shooed 1 | . . . . . 1 . . . . . . . . . . . . . . . . . . . . . . Parts Field Recycled . | . . . . . . . . . . . . . . . . . . . . . . . . . . . . Retrieved Matter . | . . . . . . . . . . . . . . . . . . . . . . . . . . . . Parts Self-Destructed 4 | . . . . . . . . . . . . . . . . . . . 1 . . 3 . . . . . Prevented . | . . . . . . . . . . . . . . . . . . . . . . . . . . . . Kills | -11 -10 -9 -9 -9 -8 -8 -7 -7 -6 -6 -6 -6 -6 -6 -6 -5 -5 -4 -4 -4 -4 -3 -3 -3 -2 -2 -1 ------- Run | Scr Mat Mat Min Exi Min Mat Fac DSF Fac Was Fac Ext Cet Arc Hub Fac DSF Fac Upp Upp War Pro Res DSF Res Tes Acc Combat Hostiles Destroyed 88 | . 6 6 . . 3 3 . . . . 1 . 5 1 . . . . . . . 1 . 10 3 28 21 Melee 21 | . . 6 . . 3 3 . . . . 1 . 5 1 . . . . . . . . . . . . 2 Guns 16 | . 5 . . . . . . . . . . . . . . . . . . . . . . 3 2 3 3 Cannons 19 | . . . . . . . . . . . . . . . . . . . . . . 1 . 7 . 7 4 AOE 28 | . 1 . . . . . . . . . . . . . . . . . . . . . . . . 16 11 Classes Destroyed 17 | . 2 3 . . . 1 . . . . 1 . . . . . . . . . . 1 . 3 . 4 2 Worker 7 | . . 1 . . 1 . . . . . . . . . . . . . . . . . . . . 2 3 Builder 5 | . . . . . . . . . . . 1 . . . . . . . . . . . . . . 2 2 Hauler 2 | . . . . . . 1 . . . . . . . . . . . . . . . . . . . 1 . Recycler 1 | . . . . . . . . . . . . . . . . . . . . . . . . . . . 1 Mechanic 1 | . . . . . . . . . . . . . . . . . . . . . . . . . . . 1 Watcher 3 | . 1 . . . . 1 . . . . . . . . . . . . . . . . . . . . 1 Swarmer 23 | . . 3 . . 3 . . . . . . . 3 . . . . . . . . . . 4 . . 10 Cutter 2 | . . . . . . . . . . . . . . . . . . . . . . . . 2 . . . Grunt 27 | . 6 . . . . 2 . . . . . . . . . . . . . . . . . . 1 12 6 Duelist 4 | . . . . . . . . . . . . . . . . . . . . . . . . . . 2 2 Researcher 1 | . . . . . . . . . . . . . . . . . . . . . . . . . . 1 . Sentry 13 | . . 3 . . . 1 . . . . 1 . . 1 . . . . . . . . . . 2 5 . Hunter 7 | . . . . . . . . . . . . . . . . . . . . . . . . 3 . 4 . Programmer 6 | . . . . . . . . . . . . . . . . . . . . . . 1 . . . 2 3 Heavy 1 | . . . . . . . . . . . . . . . . . . . . . . . . 1 . . . Cetus Guard 2 | . . . . . . . . . . . . . 2 . . . . . . . . . . . . . . Striker 2 | . . . . . . . . . . . . . . . . . . . . . . . . . . 2 . Alpha 7 1 | . . . . . . . . . . . . . . . . . . . . . . . . . . 1 . Best Kill Streak 9 | . 2 4 . . 3 2 . . . . 1 . 3 1 . . . . . . . 1 . 5 1 7 9 Combat Bots Only 8 | . 2 4 . . 3 2 . . . . 1 . 3 1 . . . . . . . 1 . 5 1 6 8 Max Kills in Single Turn 7 | . 1 1 . . 1 1 . . . . 1 . 1 1 . . . . . . . 1 . 1 1 7 3 Gunslinging . | . . . . . . . . . . . . . . . . . . . . . . . . . . . . Exploded 5 | . 1 . . . . . . . . . . . . . . . . . . . . . . . . 5 3 Melee 1 | . . 1 . . 1 1 . . . . 1 . 1 1 . . . . . . . . . . . . 1 Uniques/NPCs Destroyed . | . . . . . . . . . . . . . . . . . . . . . . . . . . . . Combat | -11 -10 -9 -9 -9 -8 -8 -7 -7 -6 -6 -6 -6 -6 -6 -6 -5 -5 -4 -4 -4 -4 -3 -3 -3 -2 -2 -1 -------- Run | Scr Mat Mat Min Exi Min Mat Fac DSF Fac Was Fac Ext Cet Arc Hub Fac DSF Fac Upp Upp War Pro Res DSF Res Tes Acc Damage Taken 20655 | . 582 370 . . 131 120 . 79 . . 30 218 370 921 692 . 802 143 288 149 177 96 . 1706 1334 6157 6290 Core 3904 | . 58 49 . . 10 13 . . . . 6 33 46 256 459 . 580 23 108 . . 25 . 196 81 347 1614 Absorbed by Shields 1167 | . . . . . . . . . . . . . . . 25 . 58 . . . . . . . 717 367 . Reduced by Siege Mode 266 | . . . . . . . . . . . . . . . . . . . . . . . . . . 124 142 Redirected to Shielding 634 | . . . . . . . . . . . . . . . . . . . . . . . . . . . 634 Core Remaining (%) 74 | 100 76 . . . 85 97 . 100 . . . . . . 5 . 42 . . . . 86 . 84 . 70 . Volleys Fired 123 | . 30 . . . . . . . . . . . . . . . . . . . . 1 . 22 13 27 30 Largest 4 | . 2 . . . . . . . . . . . . . . . . . . . . 2 . 4 4 4 2 Hottest 400 | . 120 . . . . . . . . . . . . . . . . . . . . 100 . 220 260 400 400 Shots Fired 274 | . 53 . . . . . . . . . . . . . . . . . . . . 2 . 48 52 66 53 Gun 191 | . 46 . . . . . . . . . . . . . . . . . . . . . . 21 52 35 37 Cannon 76 | . . . . . . . . . . . . . . . . . . . . . . 2 . 27 . 31 16 Launcher . | . . . . . . . . . . . . . . . . . . . . . . . . . . . . Special 7 | . 7 . . . . . . . . . . . . . . . . . . . . . . . . . . Kinetic 24 | . 15 . . . . . . . . . . . . . . . . . . . . . . 9 . . . Thermal 202 | . 38 . . . . . . . . . . . . . . . . . . . . . . 12 52 66 34 Explosive . | . . . . . . . . . . . . . . . . . . . . . . . . . . . . Electromagnetic 19 | . . . . . . . . . . . . . . . . . . . . . . . . . . . 19 Entropic 29 | . . . . . . . . . . . . . . . . . . . . . . 2 . 27 . . . Robot Hit Streak 15 | . 6 . . . . . . . . . . . . . . . . . . . . 5 . 8 10 15 12 Robot Miss Streak 3 | . 3 . . . . . . . . . . . . . . . . . . . . . . 3 2 3 3 Penetration Max . | . . . . . . . . . . . . . . . . . . . . . . . . . . . . Secondary Targets 5 | . 1 . . . . . . . . . . . . . . . . . . . . . . 1 . 3 . Max Gunslinging Chain 1 | . 1 . . . . . . . . . . . . . . . . . . . . . . 1 . 1 . Shots Hit Robots 235 | . 33 10 . . 7 12 . . . 3 2 . 7 14 . . . . . . . 1 . 32 30 39 45 Core Hits 149 | . 15 7 . . 4 6 . . . 2 2 . 6 2 . . . . . . . 1 . 16 11 41 36 Critical Kills 1 | . . . . . . . . . . . . . . . . . . . . . . . . . . . 1 Critical Parts Destroyed . | . . . . . . . . . . . . . . . . . . . . . . . . . . . . Critical Strikes 8 | . 2 . . . . . . . . . . . . 1 . . . . . . . . . 4 . . 1 Burn 2 | . 2 . . . . . . . . . . . . . . . . . . . . . . . . . . Meltdown 1 | . . . . . . . . . . . . . . . . . . . . . . . . . . . 1 Sever 1 | . . . . . . . . . . . . . . 1 . . . . . . . . . . . . . Sunder 4 | . . . . . . . . . . . . . . . . . . . . . . . . 4 . . . Melee Attacks 135 | . . 21 . . 19 23 10 . . 3 4 . 22 17 . . . . . . . . . . . . 16 Impact 1 | . . . . . . . 1 . . . . . . . . . . . . . . . . . . . . Slashing 120 | . . 21 . . 19 23 9 . . 3 4 . 22 17 . . . . . . . . . . . . 2 Piercing 14 | . . . . . . . . . . . . . . . . . . . . . . . . . . . 14 Sneak Attacks 10 | . . 2 . . 3 1 . . . . 1 . . . . . . . . . . . . . . . 3 Combat Hostiles . | . . . . . . . . . . . . . . . . . . . . . . . . . . . . Follow-up Attacks 9 | . . 1 . . 2 2 . . . . 1 . 2 . . . . . . . . . . . . . 1 Damage Inflicted 17169 | . 475 382 . . 317 391 . . . 97 104 . 257 452 4 . 28 . . . . 62 . 1571 913 7502 4614 Guns 3137 | . 425 . . . . . . . . . . . . . . . . . . . . . . 363 913 773 663 Cannons 5345 | . . . . . . . . . . . . . . . . . . . . . . 62 . 1208 . 2669 1406 Explosions 6057 | . 50 . . . . . . . . . . . . . . . . . . . . . . . . 4060 1947 Melee 2495 | . . 382 . . 317 391 . . . 97 104 . 257 452 . . . . . . . . . . . . 495 Ramming 135 | . . . . . . . . . . . . . . . 4 . 28 . . . . . . . . . 103 Kinetic 214 | . 124 . . . . . . . . . . . . . . . . . . . . . . 90 . . . Thermal 12801 | . 301 . . . . . . . . . . . . . . . . . . . . . . 273 913 7502 3812 Explosive . | . . . . . . . . . . . . . . . . . . . . . . . . . . . . Electromagnetic 254 | . 50 . . . . . . . . . . . . . . . . . . . . . . . . . 204 Impact . | . . . . . . . . . . . . . . . . . . . . . . . . . . . . Slashing 2051 | . . 382 . . 317 391 . . . 97 104 . 257 452 . . . . . . . . . . . . 51 Piercing 444 | . . . . . . . . . . . . . . . . . . . . . . . . . . . 444 Entropic 1270 | . . . . . . . . . . . . . . . . . . . . . . 62 . 1208 . . . Highest Corruption 26 | . 1 . . . . . . . . . . . . . 3 . 2 1 4 4 4 2 . . . 7 26 Average Corruption 6 | . 1 . . . . . . . . . . . . . 2 . 2 1 2 4 4 2 . . . 5 13 Corruption Purged . | . . . . . . . . . . . . . . . . . . . . . . . . . . . . Corruption Blocked 32 | . . . . . . . . . . . . . . . . . . . . . . . . . 32 . . Effects 44 | . . . . . . . . . . . . . . . 1 . . 1 7 3 1 2 . . . 15 14 Message Errors 9 | . . . . . . . . . . . . . . . . . . . 1 . . . . . . 5 3 Matter Fused 5 | . . . . . . . . . . . . . . . . . . 1 . 1 1 2 . . . . . Heat Flow Errors 8 | . . . . . . . . . . . . . . . . . . . 4 2 . . . . . 1 1 Energy Discharges 7 | . . . . . . . . . . . . . . . . . . . 1 . . . . . . 3 3 Parts Rejected 3 | . . . . . . . . . . . . . . . . . . . 1 . . . . . . 1 1 Data Loss (minor) 6 | . . . . . . . . . . . . . . . 1 . . . . . . . . . . 3 2 Data Loss (major) 1 | . . . . . . . . . . . . . . . . . . . . . . . . . . . 1 Misfires 2 | . . . . . . . . . . . . . . . . . . . . . . . . . . 2 . Misdirections 2 | . . . . . . . . . . . . . . . . . . . . . . . . . . . 2 Weapon Failures 1 | . . . . . . . . . . . . . . . . . . . . . . . . . . . 1 Overload Shots . | . . . . . . . . . . . . . . . . . . . . . . . . . . . . Overflow Damage 1927 | . . 33 . . 54 . . . . . . . . . . . . . . . . . . 56 . 1074 710 Projectiles 1075 | . . . . . . . . . . . . . . . . . . . . . . . . 56 . 747 272 Explosions 600 | . . . . . . . . . . . . . . . . . . . . . . . . . . 327 273 Melee 252 | . . 33 . . 54 . . . . . . . . . . . . . . . . . . . . . 165 Knockbacks 1 | . . . . . . . . . . . . . . . . . . . . . . . . . . . 1 Impact 1 | . . . . . . . . . . . . . . . . . . . . . . . . . . . 1 Kinetic . | . . . . . . . . . . . . . . . . . . . . . . . . . . . . Secondary . | . . . . . . . . . . . . . . . . . . . . . . . . . . . . Self-Inflicted Damage 528 | . 86 . . . . . . . . . . . . . 2 . 14 . . . . . . . . 96 330 Shots 7 | . 2 . . . . . . . . . . . . . . . . . . . . . . . . 2 3 Rammed 7 | . . . . . . . . . . . . . . . 2 . 2 . . . 1 . . . . . 2 Targets Rammed 7 | . . . . . . . . . . . . . . . 2 . 2 . . . 1 . . . . . 2 Kicked . | . . . . . . . . . . . . . . . . . . . . . . . . . . . . Crushed . | . . . . . . . . . . . . . . . . . . . . . . . . . . . . Highest Temperature 323 | . 300 12 . . . 15 . . . . 7 13 2 2 . . . . 233 323 214 15 . 199 192 243 256 Average Temperature 101 | . 83 12 . . . 15 . . . . 7 6 1 2 . . . . 82 124 109 10 . 122 104 101 126 Received Heat Transfer 1641 | . 282 63 . . . 90 . 9 . . 12 36 18 171 110 . . 39 42 . 21 . . . 68 446 234 Siege Activations 5 | . . . . . . . . . . . . . . . . . . . . . . . . . . 3 2 Total Turns 79 | . . . . . . . . . . . . . . . . . . . . . . . . . . 53 26 Longest Duration 23 | . . . . . . . . . . . . . . . . . . . . . . . . . . 23 23 Robots Corrupted . | . . . . . . . . . . . . . . . . . . . . . . . . . . . . Combat Hostiles . | . . . . . . . . . . . . . . . . . . . . . . . . . . . . Parts Fried 1 | . . . . . . . . . . . . . . . . . . . . . . . . . . . 1 Impact Corruptions 3 | . . . . . . . . . . . . . . . . . . . . . . . . . . . 3 Robots Melted 5 | . . . . . . . . . . . . . . . . . . . . . . . . 1 1 2 1 Combat Hostiles 4 | . . . . . . . . . . . . . . . . . . . . . . . . . 1 2 1 Parts Melted 18 | . 3 . . . . . . . . . . . . . . . . . . . . . . . 3 7 5 Heat Transferred 10700 | . 977 . . . . . . . . . . . . . . . . . . . . . . 333 1110 5472 2808 Parts Sabotaged . | . . . . . . . . . . . . . . . . . . . . . . . . . . . . Parts Stolen . | . . . . . . . . . . . . . . . . . . . . . . . . . . . . Parts Stripped . | . . . . . . . . . . . . . . . . . . . . . . . . . . . . Power Chain Reactions . | . . . . . . . . . . . . . . . . . . . . . . . . . . . . Missiles Intercepted . | . . . . . . . . . . . . . . . . . . . . . . . . . . . . Alert | -11 -10 -9 -9 -9 -8 -8 -7 -7 -6 -6 -6 -6 -6 -6 -6 -5 -5 -4 -4 -4 -4 -3 -3 -3 -2 -2 -1 ------- Run | Scr Mat Mat Min Exi Min Mat Fac DSF Fac Was Fac Ext Cet Arc Hub Fac DSF Fac Upp Upp War Pro Res DSF Res Tes Acc Peak Influence 1210 | . 213 241 28 . 61 111 164 134 70 24 102 524 521 149 120 58 40 80 . . . . 20 260 215 1169 1210 Initial 695 | . . 5 28 . . . 9 114 70 24 16 49 292 128 11 58 40 15 . . . . 20 15 146 11 695 Average 229 | . 98 126 28 . 26 43 152 119 70 24 87 423 458 100 57 58 20 25 . . . . 20 172 64 437 939 Maximum Alert Level 4 | . 1 1 . . . . . . . . . 2 2 . . . . . . . . . . 1 1 4 4 Low Security (%) 65 | 100 83 52 100 . 100 100 100 100 100 100 100 17 . 100 100 100 100 100 . . . . 100 45 76 38 . Level 1 12 | . 16 47 . . . . . . . . . 7 8 . . . . . . . . . . 54 23 7 . Level 2 10 | . . . . . . . . . . . . 74 91 . . . . . . . . . . . . 27 9 Level 3 10 | . . . . . . . . . . . . . . . . . . . . . . . . . . 23 83 Level 4 . | . . . . . . . . . . . . . . . . . . . . . . . . . . 2 6 Level 5 . | . . . . . . . . . . . . . . . . . . . . . . . . . . . . High Security . | . . . . . . . . . . . . . . . . . . . . . . . . . . . . Max Security . | . . . . . . . . . . . . . . . . . . . . . . . . . . . . Sterilizations 1 | . . . . . . . . . . . . . . . . . . . . . . . . 1 . . . Squads Dispatched 31 | . 2 2 . . . . 1 1 . . 1 . . . 5 . 1 1 . . . . . 2 1 9 5 Investigation 5 | . 1 1 . . . . . . . . 1 . . . . . . 1 . . . . . . 1 . . Extermination 4 | . . . . . . . . . . . . . . . 1 . . . . . . . . . . 1 2 Reinforcement 14 | . 1 1 . . . . . 1 . . . . . . 4 . 1 . . . . . . 2 . 3 1 Assault 5 | . . . . . . . 1 . . . . . . . . . . . . . . . . . . 2 2 Garrison 3 | . . . . . . . . . . . . . . . . . . . . . . . . . . 3 . Intercept . | . . . . . . . . . . . . . . . . . . . . . . . . . . . . Searches Triggered . | . . . . . . . . . . . . . . . . . . . . . . . . . . . . Construction Impeded 1 | . . . . . . . . . . . . . . . . . . . . . . . . . . 1 . Haulers Reinforced 1 | . . . . . . . . . . . . . . . . . . . . . . . . . . 1 . Active Scanning Responses . | . . . . . . . . . . . . . . . . . . . . . . . . . . . . Cargo Convoy Interrupts . | . . . . . . . . . . . . . . . . . . . . . . . . . . . . Stealth | -11 -10 -9 -9 -9 -8 -8 -7 -7 -6 -6 -6 -6 -6 -6 -6 -5 -5 -4 -4 -4 -4 -3 -3 -3 -2 -2 -1 --------- Run | Scr Mat Mat Min Exi Min Mat Fac DSF Fac Was Fac Ext Cet Arc Hub Fac DSF Fac Upp Upp War Pro Res DSF Res Tes Acc Distress Signals 16 | . . 2 . . . . . . . . . 2 2 . 1 . . . . . . . . . 5 1 3 Communications Jammed . | . . . . . . . . . . . . . . . . . . . . . . . . . . . . Distress Signals . | . . . . . . . . . . . . . . . . . . . . . . . . . . . . Times Spotted 251 | . 9 15 . . 3 6 . 5 . . 1 4 15 4 20 . 5 8 13 6 28 1 . 13 18 36 41 Peak Tracking Total 15 | . 4 5 . . 3 2 . 4 . . 1 3 5 3 11 . 4 9 8 6 12 1 . 6 5 12 15 Tactical Retreats 16 | . . 1 . . . . . 2 . . . . . . 1 . 2 1 2 1 1 . . 1 . 1 3 Traps | -11 -10 -9 -9 -9 -8 -8 -7 -7 -6 -6 -6 -6 -6 -6 -6 -5 -5 -4 -4 -4 -4 -3 -3 -3 -2 -2 -1 ------- Run | Scr Mat Mat Min Exi Min Mat Fac DSF Fac Was Fac Ext Cet Arc Hub Fac DSF Fac Upp Upp War Pro Res DSF Res Tes Acc Traps Triggered 11 | . 1 . . . . . . . 1 . 1 . . . 3 . 1 . . . . . . . . 2 2 Indirectly . | . . . . . . . . . . . . . . . . . . . . . . . . . . . . Trap Hack Attempts . | . . . . . . . . . . . . . . . . . . . . . . . . . . . . Triggered . | . . . . . . . . . . . . . . . . . . . . . . . . . . . . Disarmed . | . . . . . . . . . . . . . . . . . . . . . . . . . . . . Reprogrammed . | . . . . . . . . . . . . . . . . . . . . . . . . . . . . Reused . | . . . . . . . . . . . . . . . . . . . . . . . . . . . . Traps Extracted . | . . . . . . . . . . . . . . . . . . . . . . . . . . . . Installed . | . . . . . . . . . . . . . . . . . . . . . . . . . . . . Triggered 11 | . . . . . . . . . . . . . . . . . . . . . 11 . . . . . . Machines | -11 -10 -9 -9 -9 -8 -8 -7 -7 -6 -6 -6 -6 -6 -6 -6 -5 -5 -4 -4 -4 -4 -3 -3 -3 -2 -2 -1 ---------- Run | Scr Mat Mat Min Exi Min Mat Fac DSF Fac Was Fac Ext Cet Arc Hub Fac DSF Fac Upp Upp War Pro Res DSF Res Tes Acc Machines Disabled 15 | . 2 . . . . . 1 . . . . . 2 . . . . . . . . . . . 1 9 . Max in Single Turn 2 | . 2 . . . . . 1 . . . . . 1 . . . . . . . . . . . 1 2 . Garrison Access 3 | . . . . . . . 1 . . . . . . . . . . . . . . . . . 1 1 . Machines Sabotaged . | . . . . . . . . . . . . . . . . . . . . . . . . . . . . Garrisons Compromised . | . . . . . . . . . . . . . . . . . . . . . . . . . . . . Overloaded Fab Kills . | . . . . . . . . . . . . . . . . . . . . . . . . . . . . Hacking | -11 -10 -9 -9 -9 -8 -8 -7 -7 -6 -6 -6 -6 -6 -6 -6 -5 -5 -4 -4 -4 -4 -3 -3 -3 -2 -2 -1 --------- Run | Scr Mat Mat Min Exi Min Mat Fac DSF Fac Was Fac Ext Cet Arc Hub Fac DSF Fac Upp Upp War Pro Res DSF Res Tes Acc Machines Accessed 41 | . 1 2 . 2 1 1 3 . 1 . 1 1 1 . 3 2 . 1 2 . 11 . 2 . . 3 3 Terminals 23 | . 1 2 . . 1 1 2 . 1 . . 1 1 . 3 1 . 1 . . . . 2 . . 3 3 Fabricators 3 | . . . . . . . 1 . . . 1 . . . . 1 . . . . . . . . . . . Repair Stations . | . . . . . . . . . . . . . . . . . . . . . . . . . . . . Recycling Units . | . . . . . . . . . . . . . . . . . . . . . . . . . . . . Scanalyzers . | . . . . . . . . . . . . . . . . . . . . . . . . . . . . Garrison Access . | . . . . . . . . . . . . . . . . . . . . . . . . . . . . Total Hacks 73 | . 2 5 . 2 4 4 3 . 1 . 1 1 2 . 9 2 . 3 3 . 16 . 5 . . 6 4 Successful 46 | . . . . 2 2 1 2 . . . 1 1 1 . 7 2 . 1 3 . 16 . 3 . . 2 2 Failed 27 | . 2 5 . . 2 3 1 . 1 . . . 1 . 2 . . 2 . . . . 2 . . 4 2 Catastrophic 4 | . 1 . . . . 1 . . 1 . . . . . . . . . . . . . . . . . 1 Database Lockouts . | . . . . . . . . . . . . . . . . . . . . . . . . . . . . Manual 15 | . 2 5 . . . 4 1 . 1 . . . 1 . 1 . . . . . . . . . . . . Terminals 49 | . 2 5 . . 4 4 2 . 1 . . 1 2 . 9 1 . 3 . . . . 5 . . 6 4 Fabricators 3 | . . . . . . . 1 . . . 1 . . . . 1 . . . . . . . . . . . Repair Stations . | . . . . . . . . . . . . . . . . . . . . . . . . . . . . Recycling Units . | . . . . . . . . . . . . . . . . . . . . . . . . . . . . Scanalyzers . | . . . . . . . . . . . . . . . . . . . . . . . . . . . . Garrison Access . | . . . . . . . . . . . . . . . . . . . . . . . . . . . . Terminal Hacks 43 | . . . . 2 2 1 1 . . . . 1 1 . 7 1 . 1 3 . 16 . 3 . . 2 2 Record 24 | . . . . 2 . . . . . . . . . . . . . . 2 . 14 . 2 . . 2 2 Prototype ID Bank 1 | . . . . . . . . . . . . . . . 1 . . . . . . . . . . . . Open Door 5 | . . . . . . . . . . . . 1 1 . . . . . 1 . 2 . . . . . . Open DSF 4 | . . . . . . . 1 . . . . . . . . 1 . 1 . . . . 1 . . . . Branch Access Points 1 | . . . . . . 1 . . . . . . . . . . . . . . . . . . . . . Emergency Access Points 2 | . . . . . . . . . . . . . . . 2 . . . . . . . . . . . . Scanalyzer Index 1 | . . . . . . . . . . . . . . . 1 . . . . . . . . . . . . Alert Level 2 | . . . . . 1 . . . . . . . . . 1 . . . . . . . . . . . . Dispatch Records 2 | . . . . . 1 . . . . . . . . . 1 . . . . . . . . . . . . Zone Layout 1 | . . . . . . . . . . . . . . . 1 . . . . . . . . . . . . Fabricator Hacks 3 | . . . . . . . 1 . . . 1 . . . . 1 . . . . . . . . . . . Network Status 3 | . . . . . . . 1 . . . 1 . . . . 1 . . . . . . . . . . . Repair Station Hacks . | . . . . . . . . . . . . . . . . . . . . . . . . . . . . Recycling Unit Hacks . | . . . . . . . . . . . . . . . . . . . . . . . . . . . . Scanalyzer . | . . . . . . . . . . . . . . . . . . . . . . . . . . . . Garrison Access Hacks . | . . . . . . . . . . . . . . . . . . . . . . . . . . . . Unauthorized Hacks . | . . . . . . . . . . . . . . . . . . . . . . . . . . . . Terminals . | . . . . . . . . . . . . . . . . . . . . . . . . . . . . Fabricators . | . . . . . . . . . . . . . . . . . . . . . . . . . . . . Repair Stations . | . . . . . . . . . . . . . . . . . . . . . . . . . . . . Recycling Units . | . . . . . . . . . . . . . . . . . . . . . . . . . . . . Scanalyzers . | . . . . . . . . . . . . . . . . . . . . . . . . . . . . Garrison Access . | . . . . . . . . . . . . . . . . . . . . . . . . . . . . Data Cores Recovered . | . . . . . . . . . . . . . . . . . . . . . . . . . . . . Used . | . . . . . . . . . . . . . . . . . . . . . . . . . . . . Hacking Detections 16 | . . 2 . . . 1 1 . 1 . . . . . 2 . . 1 . . . . 2 . . 3 3 Full Trace Events 2 | . . 1 . . . . . . . . . . . . . . . 1 . . . . . . . . . Feedback Events 1 | . . . . . . . . . . . . . . . . . . 1 . . . . . . . . . Corruption 1 | . . . . . . . . . . . . . . . . . . 1 . . . . . . . . . Feedback Blocked . | . . . . . . . . . . . . . . . . . . . . . . . . . . . . Robot Schematics Acquired . | . . . . . . . . . . . . . . . . . . . . . . . . . . . . Robots Built . | . . . . . . . . . . . . . . . . . . . . . . . . . . . . Authchips . | . . . . . . . . . . . . . . . . . . . . . . . . . . . . Time . | . . . . . . . . . . . . . . . . . . . . . . . . . . . . Total Robot Build Rating . | . . . . . . . . . . . . . . . . . . . . . . . . . . . . Part Schematics Acquired . | . . . . . . . . . . . . . . . . . . . . . . . . . . . . Parts Built . | . . . . . . . . . . . . . . . . . . . . . . . . . . . . Authchips . | . . . . . . . . . . . . . . . . . . . . . . . . . . . . Time . | . . . . . . . . . . . . . . . . . . . . . . . . . . . . Total Part Build Rating . | . . . . . . . . . . . . . . . . . . . . . . . . . . . . Parts Repaired . | . . . . . . . . . . . . . . . . . . . . . . . . . . . . Time . | . . . . . . . . . . . . . . . . . . . . . . . . . . . . Parts Recycled . | . . . . . . . . . . . . . . . . . . . . . . . . . . . . Recycled Matter . | . . . . . . . . . . . . . . . . . . . . . . . . . . . . Retrieved Matter . | . . . . . . . . . . . . . . . . . . . . . . . . . . . . Retrieved Components . | . . . . . . . . . . . . . . . . . . . . . . . . . . . . Parts Scanalyzed . | . . . . . . . . . . . . . . . . . . . . . . . . . . . . Part Schematics Acquired . | . . . . . . . . . . . . . . . . . . . . . . . . . . . . Parts Damaged . | . . . . . . . . . . . . . . . . . . . . . . . . . . . . Bothacking | -11 -10 -9 -9 -9 -8 -8 -7 -7 -6 -6 -6 -6 -6 -6 -6 -5 -5 -4 -4 -4 -4 -3 -3 -3 -2 -2 -1 ------------ Run | Scr Mat Mat Min Exi Min Mat Fac DSF Fac Was Fac Ext Cet Arc Hub Fac DSF Fac Upp Upp War Pro Res DSF Res Tes Acc Used RIF Installer . | . . . . . . . . . . . . . . . . . . . . . . . . . . . . Robots Hacked . | . . . . . . . . . . . . . . . . . . . . . . . . . . . . Non-combat . | . . . . . . . . . . . . . . . . . . . . . . . . . . . . Combat . | . . . . . . . . . . . . . . . . . . . . . . . . . . . . Robot Hacks Applied . | . . . . . . . . . . . . . . . . . . . . . . . . . . . . Relay Couplers Released 9 | . . . . . . . 2 . . . . . . . . . . . . . . . . . 4 3 . Machine Destruction 6 | . . . . . . . 2 . . . . . . . . . . . . . . . . . 1 3 . Programmers 3 | . . . . . . . . . . . . . . . . . . . . . . . . . 3 . . Fabnet Peak Effective % . | . . . . . . . . . . . . . . . . . . . . . . . . . . . . Robots Rewired . | . . . . . . . . . . . . . . . . . . . . . . . . . . . . Allies Hacked . | . . . . . . . . . . . . . . . . . . . . . . . . . . . . Hacks Repelled . | . . . . . . . . . . . . . . . . . . . . . . . . . . . . Allies | -11 -10 -9 -9 -9 -8 -8 -7 -7 -6 -6 -6 -6 -6 -6 -6 -5 -5 -4 -4 -4 -4 -3 -3 -3 -2 -2 -1 -------- Run | Scr Mat Mat Min Exi Min Mat Fac DSF Fac Was Fac Ext Cet Arc Hub Fac DSF Fac Upp Upp War Pro Res DSF Res Tes Acc Total Allies 20 | . . . . . . . . . . 20 . . . . . . . . . . . . . . . . . Largest Group 20 | . . . . . . . . . . 20 20 19 18 2 . . . . . . . . . . . . . Highest-Rated Group 743 | . . . . . . . . . . 743 743 697 651 53 . . . . . . . . . . . . . Highest-Rated Ally 50 | . . . . . . . . . . 50 50 50 50 27 . . . . . . . . . . . . . Total Orders . | . . . . . . . . . . . . . . . . . . . . . . . . . . . . Ally Attacks 229 | . . . . . . . . . . . 2 100 127 . . . . . . . . . . . . . . Total Damage 5125 | . . . . . . . . . . . 51 2000 3074 . . . . . . . . . . . . . . Kills 25 | . . . . . . . . . . . . 12 13 . . . . . . . . . . . . . . Allies Corrupted . | . . . . . . . . . . . . . . . . . . . . . . . . . . . . Allies Melted 1 | . . . . . . . . . . . . . . . . . . . . . . . . . 1 . . Intel | -11 -10 -9 -9 -9 -8 -8 -7 -7 -6 -6 -6 -6 -6 -6 -6 -5 -5 -4 -4 -4 -4 -3 -3 -3 -2 -2 -1 ------- Run | Scr Mat Mat Min Exi Min Mat Fac DSF Fac Was Fac Ext Cet Arc Hub Fac DSF Fac Upp Upp War Pro Res DSF Res Tes Acc Robot Analysis Total . | . . . . . . . . . . . . . . . . . . . . . . . . . . . . Derelict Logs Recovered 2 | . . . . . . . . . . . . . . . . . . . 1 1 . . . . . . . Drone Launches . | . . . . . . . . . . . . . . . . . . . . . . . . . . . . Drone Recoveries . | . . . . . . . . . . . . . . . . . . . . . . . . . . . . Exploration | -11 -10 -9 -9 -9 -8 -8 -7 -7 -6 -6 -6 -6 -6 -6 -6 -5 -5 -4 -4 -4 -4 -3 -3 -3 -2 -2 -1 ------------- Run | Scr Mat Mat Min Exi Min Mat Fac DSF Fac Was Fac Ext Cet Arc Hub Fac DSF Fac Upp Upp War Pro Res DSF Res Tes Acc Turns Passed 9834 | 17 406 476 117 674 859 591 141 83 20 163 207 306 402 121 273 18 126 61 242 135 641 336 59 386 1512 608 854 Spaces Moved 8792 | 15 206 212 74 422 483 397 175 127 40 291 319 293 549 65 452 36 144 135 734 416 839 396 174 220 813 251 514 Core 235 | . . . . . . . . . . . . . . . 194 . 17 . . . . . . . . . 24 Treads 2777 | . 26 212 74 422 483 52 . . . . . . . . . . . . . . . . . 132 813 251 312 Legs 195 | 15 180 . . . . . . . . . . . . . . . . . . . . . . . . . . Wheels . | . . . . . . . . . . . . . . . . . . . . . . . . . . . . Hover 5206 | . . . . . . 345 175 127 40 291 319 293 549 25 4 . 78 135 734 416 839 396 174 88 . . 178 Flight 379 | . . . . . . . . . . . . . . 40 254 36 49 . . . . . . . . . . Fastest Speed 28 | 120 120 160 160 160 160 45 45 45 43 43 43 43 43 31 31 40 28 32 28 28 28 32 32 32 145 145 38 Average Speed 86 | 120 125 160 160 160 160 80 45 45 43 43 43 43 43 38 42 40 41 39 30 31 71 80 32 117 166 153 122 Slowest Speed 305 | 120 190 240 160 160 160 240 45 45 43 43 43 43 108 50 200 40 50 40 32 32 192 112 32 170 250 237 305 Overloaded Moves . | . . . . . . . . . . . . . . . . . . . . . . . . . . . . Propulsion Burnouts . | . . . . . . . . . . . . . . . . . . . . . . . . . . . . Robots Hopped 1 | . . . . . . . . . . . . . . . 1 . . . . . . . . . . . . Cave-ins Triggered . | . . . . . . . . . . . . . . . . . . . . . . . . . . . . Exploration Rate (%) 46 | 2 47 31 15 92 86 32 3 79 2 92 8 43 89 77 40 2 95 4 72 65 92 62 6 96 28 40 15 Regions Visited 27 Branch Regions 12 Pre-discovered Areas . | . . . . . . . . . . . . . . . . . . . . . . . . . . . . Known Exits Taken 14 | . . . . . . 1 1 . . . 1 1 1 1 1 1 . . . 1 1 1 1 . 1 1 . Unknown Exits Taken 8 | 1 1 1 1 1 1 . . . . . . . . . . . . 1 1 . . . . . . . . Scrap Searched 10 | . . . . . 1 . . . . . . . . . . . . . 4 4 . 1 . . . . . Spaces Dug 47 | . 7 3 . . 5 5 7 . . . 1 . . 1 . . . . . . . . . . 3 11 4 Terrain Destroyed 394 | . 7 3 . . 5 5 7 . . . 1 . . 1 . . . . . . . 1 . 10 6 300 48 Melee 25 | . . 3 . . 5 5 7 . . . 1 . . 1 . . . . . . . . . . . . 3 Projectile 43 | . 7 . . . . . . . . . . . . . . . . . . . . 1 . 10 6 15 4 AOE 326 | . . . . . . . . . . . . . . . . . . . . . . . . . . 285 41 Terrain Rammed . | . . . . . . . . . . . . . . . . . . . . . . . . . . . . Walls Destroyed . | . . . . . . . . . . . . . . . . . . . . . . . . . . . . Machines Disabled . | . . . . . . . . . . . . . . . . . . . . . . . . . . . . Actions | -11 -10 -9 -9 -9 -8 -8 -7 -7 -6 -6 -6 -6 -6 -6 -6 -5 -5 -4 -4 -4 -4 -3 -3 -3 -2 -2 -1 --------- Run | Scr Mat Mat Min Exi Min Mat Fac DSF Fac Was Fac Ext Cet Arc Hub Fac DSF Fac Upp Upp War Pro Res DSF Res Tes Acc Total 10595 | 14 285 323 73 421 545 637 223 153 43 323 383 472 680 136 529 39 207 141 747 418 881 412 175 302 953 426 654 Wait 1209 | . 33 65 . . 44 191 39 14 . 29 61 180 100 50 66 . 40 3 10 . 21 11 . 30 73 110 39 Move 8765 | 14 205 211 73 421 482 396 174 126 40 290 317 292 548 64 449 36 143 134 733 415 839 395 173 219 812 250 514 Hop 1 | . . . . . . . . . . . . . . . 1 . . . . . . . . . . . . Pick Up 83 | . 3 7 . . 2 6 . 5 . 1 . . 6 . 2 . 8 . . . 6 . . 4 22 2 9 Fast Attach 102 | . 4 7 . . . 9 . 2 . . 1 . 2 . 5 1 6 1 2 1 3 . 2 16 12 12 16 Attach 73 | . 4 . . . 1 . . 1 3 . . . 3 6 2 2 1 3 2 2 2 2 . 2 3 16 18 Detach 20 | . 2 1 . . . . . . . . . . . . 2 . . . . . 2 2 . 1 3 5 2 Swap 14 | . 3 . . . . 2 2 . . . . . . . . . . . . . 3 . . . . 1 3 Drop 73 | . 1 13 . . . 13 . 5 . . . . 2 . . . . . . . 5 1 . 8 15 3 7 Fire 123 | . 30 . . . . . . . . . . . . . . . . . . . . 1 . 22 13 27 30 Melee 118 | . . 19 . . 16 20 8 . . 3 3 . 19 16 . . . . . . . . . . . . 14 Ram 6 | . . . . . . . . . . . . . . . 2 . 2 . . . . . . . . . 2 Kick . | . . . . . . . . . . . . . . . . . . . . . . . . . . . . Crush . | . . . . . . . . . . . . . . . . . . . . . . . . . . . . Escape Stasis 8 | . . . . . . . . . . . 1 . . . . . 7 . . . . . . . . . . Rewire . | . . . . . . . . . . . . . . . . . . . . . . . . . . . . Trap . | . . . . . . . . . . . . . . . . . . . . . . . . . . . . Miscellaneous . | . . . . . . . . . . . . . . . . . . . . . . . . . . . . Route ------- -11/Scrapyard -10/Materials (discovered 3 exits: *Mat x3) -9/Materials -9/Mines -9/Exiles -8/Mines -8/Materials (discovered 2 exits: *Fac / *Sto) -7/Factory -7/DSF -6/Factory -6/Waste -6/Factory -6/Extension (discovered 3 exits: *Fac x2 / *Cet) -6/Cetus (discovered 2 exits: *Fac / *Arc) -6/Archives (discovered 2 exits: *Fac / *Hub) -6/Hub_04(d) (discovered 3 exits: *Fac x3) -5/Factory -5/DSF -4/Factory -4/Upper Caves -4/Upper Caves (discovered 2 exits: *Res / *War) -4/Warlord -3/Proximity Caves -3/Research (discovered 2 exits: Qua / DSF) -3/DSF -2/Research (discovered 2 exits: *Tes x2) -2/Testing -1/Access History --------- Turn | Location | Event 1 | -11/Scrapyard | Discovered new exit (range 3) 18 | -11/Scrapyard | Entered Materials 203 | -10/Materials | Discovered new exit (range 7) 291 | -10/Materials | Discovered new exit (range 15) 337 | -10/Materials | Discovered new exit (range 14) 360 | -10/Materials | Build established: Mutant 361 | -10/Materials | Lost 3 parts (1n2w) 424 | -10/Materials | Entered another Materials area 424 | -9/Materials | Evolved 2 slots: Utility x2 884 | -9/Materials | Discovered new exit (range 11) 900 | -9/Materials | Entered Mines 1009 | -9/Mines | Deemed a non-threat by the Exiles lab entrance 1011 | -9/Mines | Discovered new exit (range 5) 1017 | -9/Mines | Entered Exiles 1017 | -9/Exiles | Found Exiles lab abandoned 1674 | -9/Exiles | Discovered new exit (range 11) 1691 | -9/Exiles | Entered Mines 2456 | -8/Mines | Discovered new exit (range 8) 2550 | -8/Mines | Entered Materials 2550 | -8/Materials | Evolved 2 slots: Propulsion x1, Utility x1 2600 | -8/Materials | Identified exit to Storage 3140 | -8/Materials | Discovered new exit (range 3) 3140 | -8/Materials | Identified exit to Factory 3141 | -8/Materials | Entered Factory 3141 | -7/Factory | Evolved 2 slots: Power x1, Utility x1 3282 | -7/Factory | Identified exit to DSF 3282 | -7/Factory | Entered DSF 3299 | -7/DSF | Additional patrols routed to DSF 3358 | -7/DSF | Discovered new exit (range 15) 3364 | -7/DSF | Identified exit to Factory 3365 | -7/DSF | Entered Factory 3365 | -6/Factory | Evolved 2 slots: Propulsion x1, Utility x1 3385 | -6/Factory | Sucked down chute 3385 | -6/Factory | Entered Waste 3386 | -6/Waste | Joined by Warlord forces that had cleared the area 3429 | -6/Waste | Discovered new exit (range 12) 3547 | -6/Waste | Identified exit to Factory 3548 | -6/Waste | Entered Factory 3548 | -6/Factory | Accompanied by 20 allies 3689 | -6/Factory | Discovered new exit (range 16) 3695 | -6/Factory | Identified exit to Extension 3755 | -6/Factory | Entered Extension 3755 | -6/Extension | Accompanied by 19 allies 3806 | -6/Extension | Spotted B-75 Beast 3809 | -6/Extension | Spotted B-75 Beast 3813 | -6/Extension | Allies destroyed B-75 Beast 3820 | -6/Extension | Discovered new exit (range 3) 3820 | -6/Extension | Identified exit to Factory 3822 | -6/Extension | Allies destroyed B-75 Beast 3858 | -6/Extension | Discovered new exit (range 15) 3858 | -6/Extension | Discovered exit to Factory (range 15) 3864 | -6/Extension | Identified exit to Cetus 4061 | -6/Extension | Entered Cetus 4061 | -6/Cetus | Accompanied by 18 allies 4069 | -6/Cetus | Spotted Cetus Guard 4069 | -6/Cetus | Spotted Cetus Guard 4073 | -6/Cetus | Spotted Cetus Guard 4074 | -6/Cetus | Spotted Cetus Guard 4083 | -6/Cetus | Destroyed Cetus Guard 4083 | -6/Cetus | Allies destroyed Cetus Guard 4131 | -6/Cetus | Discovered new exit (range 15) 4137 | -6/Cetus | Identified exit to Archives 4146 | -6/Cetus | Spotted Cetus Guard 4147 | -6/Cetus | Spotted Cetus Guard 4171 | -6/Cetus | Spotted Cetus Guard 4171 | -6/Cetus | Spotted Cetus Guard 4179 | -6/Cetus | Discovered exit to Factory (range 15) 4179 | -6/Cetus | Allies destroyed Cetus Guard 4183 | -6/Cetus | Destroyed Cetus Guard 4187 | -6/Cetus | Met Revision 17 4353 | -6/Cetus | Lost 4 parts (1p2n1u) 4463 | -6/Cetus | Entered Archives 4463 | -6/Archives | Accompanied by 2 allies 4570 | -6/Archives | Unable to access archive contents 4571 | -6/Archives | Discovered exit to Factory (range 15) 4579 | -6/Archives | Discovered new exit (range 15) 4583 | -6/Archives | Identified exit to Hub_04(d) 4584 | -6/Archives | Entered Hub_04(d) 4602 | -6/Hub_04(d) | Lost 14 parts (3p5n4u2w) 4603 | -6/Hub_04(d) | Discovered exit to Factory (range 10) 4603 | -6/Hub_04(d) | Discovered exit to Factory (range 20) 4755 | -6/Hub_04(d) | Core integrity fell below 50% 4780 | -6/Hub_04(d) | Discovered exit to Factory (range 7) 4791 | -6/Hub_04(d) | Lost 6 parts (3n3u) 4803 | -6/Hub_04(d) | Core integrity fell below 20% 4857 | -6/Hub_04(d) | Entered Factory 4857 | -5/Factory | Evolved 2 slots: Propulsion x1, Utility x1 4875 | -5/Factory | Identified exit to DSF 4875 | -5/Factory | Entered DSF 4914 | -5/DSF | Additional patrols routed to DSF 4926 | -5/DSF | Core integrity fell below 50% 4935 | -5/DSF | Discovered new exit (range 16) 4965 | -5/DSF | Lost 4 parts (3n1w) 5001 | -5/DSF | Entered Factory 5001 | -4/Factory | Evolved 2 slots: Power x1, Propulsion x1 5016 | -4/Factory | Spotted B-86 Titan 5040 | -4/Factory | Discovered new exit (range 15) 5062 | -4/Factory | Entered Upper Caves 5235 | -4/Upper Caves | Encountered a Warlord checkpoint 5267 | -4/Upper Caves | Attracted the attention of an 0b10 outpost 5301 | -4/Upper Caves | Discovered new exit (range 9) 5304 | -4/Upper Caves | Attracted the attention of an 0b10 checkpoint 5304 | -4/Upper Caves | Entered another Upper Caves area 5321 | -4/Upper Caves | Discovered new exit (range 15) 5329 | -4/Upper Caves | Identified exit to Research 5366 | -4/Upper Caves | Build established: Sprinter 5385 | -4/Upper Caves | Learned Research emergency access door positions 5414 | -4/Upper Caves | Attracted the attention of an 0b10 checkpoint 5434 | -4/Upper Caves | Discovered new exit (range 15) 5439 | -4/Upper Caves | Identified exit to Warlord 5439 | -4/Upper Caves | Entered Warlord 5451 | -4/Warlord | System corruption cleaned by Quarantine Array 5549 | -4/Warlord | Learned Quarantine security intel 5549 | -4/Warlord | Learned Factory terminal intel 5549 | -4/Warlord | Learned Research terminal intel 5549 | -4/Warlord | Learned Research garrison access intel 5550 | -4/Warlord | Learned Armory emergency access door positions 5550 | -4/Warlord | Learned Quarantine emergency access door positions 5558 | -4/Warlord | Visited the Vortex Lab 5561 | -4/Warlord | Met EX-DEC 5561 | -4/Warlord | Found Prototype Energy Cannon 5563 | -4/Warlord | Found Prototype Energy Gun 5566 | -4/Warlord | Found Prototype Energy Cannon 5567 | -4/Warlord | Found Prototype Energy Gun 5568 | -4/Warlord | Found Prototype Energy Cannon 5570 | -4/Warlord | Identified Vortex Cannon (x2) 5571 | -4/Warlord | Identified Vortex Shotgun (x2) 5580 | -4/Warlord | Warlord's base attacked by MAIN.C 5793 | -4/Warlord | Met Warlord 5876 | -4/Warlord | Build established: Mutant 5930 | -4/Warlord | Warlord forces counterattacked 5940 | -4/Warlord | Spotted Striker 5976 | -4/Warlord | Spotted Striker 6008 | -4/Warlord | Spotted Executioner 6008 | -4/Warlord | Spotted Striker 6019 | -4/Warlord | P-80 Master assimilated allied PE-ZD2(g) 6044 | -4/Warlord | Opened side exit 6058 | -4/Warlord | Discovered new exit (range 9) 6065 | -4/Warlord | Identified exit to Proximity Caves 6080 | -4/Warlord | Spotted Executioner 6080 | -4/Warlord | Entered Proximity Caves 6372 | -3/Proximity Caves | Discovered exit to Research (range 22) 6416 | -3/Proximity Caves | Entered Research 6416 | -3/Research | Evolved 2 slots: Weapon x2 6417 | -3/Research | Identified exit to Quarantine 6419 | -3/Research | Loaded intel: 22 terminal locations 6420 | -3/Research | Loaded intel: 4 garrison access locations 6449 | -3/Research | Found Enh. Force Lance 6475 | -3/Research | Identified exit to DSF 6475 | -3/Research | Entered DSF 6510 | -3/DSF | Additional patrols routed to DSF 6710 | -3/DSF | Sterilization system engaged 6730 | -3/DSF | Ambient heat levels rising (+10) 6745 | -3/DSF | Ambient heat levels rising (+10) 6760 | -3/DSF | Ambient heat levels rising (+10) 6775 | -3/DSF | Ambient heat levels rising (+10) 6786 | -3/DSF | Discovered new exit (range 15) 6790 | -3/DSF | Ambient heat levels rising (+10) 6805 | -3/DSF | Ambient heat levels rising (+10) 6820 | -3/DSF | Ambient heat levels rising (+10) 6835 | -3/DSF | Ambient heat levels rising (+10) 6850 | -3/DSF | Ambient heat levels rising (+10) 6859 | -3/DSF | Identified exit to Research 6861 | -3/DSF | Entered Research 6861 | -2/Research | Warlord forces began assault on 0b10 6861 | -2/Research | Evolved 2 slots: Utility x2 6971 | -2/Research | Research machine network offline 7043 | -2/Research | Build established: Generator-Skirmisher 7118 | -2/Research | Borebot progress halted 7399 | -2/Research | Discovered new exit (range 6) 7418 | -2/Research | Identified exit to Testing 7546 | -2/Research | Borebot progress halted 7631 | -2/Research | Borebot progress halted 7687 | -2/Research | Met up with Warlord 7797 | -2/Research | Spotted Striker 7831 | -2/Research | Build established: Generator-Tank 7854 | -2/Research | Discovered exit to Testing (range 5) 7861 | -2/Research | Warlord invited to help at Command 8244 | -2/Research | Found Prototype Processor 8263 | -2/Research | Warlord destroyed during the assault 8373 | -2/Research | Entered Testing 8450 | -2/Testing | Garrison activated, responded to threat 8513 | -2/Testing | Identified Exp. Core Analyzer 8535 | -2/Testing | Found Prototype Energy Cannon 8535 | -2/Testing | Identified Imp. Potential Cannon 8540 | -2/Testing | Found Imp. Potential Cannon 8588 | -2/Testing | Lost 13 parts (4p1n4u4w) 8669 | -2/Testing | Found Prototype Device 8669 | -2/Testing | Identified Exp. ECM Suite 8700 | -2/Testing | Found Prototype Energy Gun 8700 | -2/Testing | Identified Hyp. EM Gauss Rifle 8719 | -2/Testing | Spotted Striker 8728 | -2/Testing | Destroyed Striker 8728 | -2/Testing | Spotted Striker 8731 | -2/Testing | Spotted Alpha 7 8732 | -2/Testing | Destroyed Striker 8753 | -2/Testing | Destroyed Alpha 7 8873 | -2/Testing | First assault squad dispatched 8934 | -2/Testing | Lost 6 parts (2p2n2u) 8968 | -2/Testing | Discovered new exit (range 8) 8979 | -2/Testing | Identified exit to Access 8981 | -2/Testing | Entered Access 8981 | -1/Access | Evolved 2 slots: Power x1, Propulsion x1 9229 | -1/Access | Build established: Generator-Gunner 9231 | -1/Access | First assault squad dispatched 9253 | -1/Access | Destroyed 8 combat bots 9592 | -1/Access | System corruption reached 10% 9713 | -1/Access | Lost 11 parts (3n6u2w) 9803 | -1/Access | Core integrity fell below 50% 9820 | -1/Access | Core integrity fell below 20% 9835 | -1/Access | Destroyed by H-88 Terminator with KE Penetrator Last Messages --------------- 09817_ Penetrated by Slug. 09819_ Slug penetrates Wall. 09819_ Penetrated by Slug. 09819_ Imp. Energy Well destroyed. 09819_ Dropped Cmb. Antigrav System. 09820_ P-80 Master resets H-88 Terminator, system corruption cleaned. 09820_ Penetrated by Slug. 09822_ C-30 ARC bursts open, deploying its payload. 09822_ G-73 Enforcer unfolds itself. 09822_ B-74 Champion unfolds itself. 09822_ L-61 Swordsman unfolds itself. 09822_ M-36 Artificer unfolds itself. 09822_ Critical hit (Burn: +37). 09822_ Penetrated by Slug. 09822_ Slug penetrates Wall. 09822_ Slug penetrates H-88 Terminator. 09826_ Acquired ECM Suite. 09833_ System corrupted: Heat flow error (+208). 09833_ Acquired Enh. Nova Cannon. 09835_ Slug penetrates Recycling Unit. Map ----- +----------------------------------------------------+ | #??????#?????????????????????????????????????????? | | #???? #?????????????????????????????????????????? | | #?? #?????????????????????????????????????????? | | # #?????????????????????????????????????????? | | / #?????????????????????????????????????????? | | ########???##########????????????????????????????? | | #?????????? [ #????????????????????????????? | | #?????????# #????????????????????????????? | | #?????????# " #????????????????????????????? | | #?????????#""" #????????????????????????????? | | #?????????# """ #????????????????????????????? | | #?????????? " #????????????????????????????? | | #???????????? #????????????????????????????? | | #?????????????? ?????????????????????????????? | | #?????????????###+##?????????????????????????????? | | ############### #################?????????????? | | %= = " ??????????? | | % "%" ??????????? | | ######"######## ###b############??????????????? | | ##??????##+### gY #????????????????????? | | #??????? # #????????????????????? | | " #????? # l""" #????????????????????? | | """ #???# """ # h"Y"pp#????????????????????? | | "" #???# ""F # " " #????????????????????? | | " #???# "" # #????????????????????? | | #???# """ ; @ #????????????????????? | | #???# ?""" # #????????????????????? | | #???#???? # #????????????????????? | | ????????? [ ##########????????????????????? | | """???????????#####?????????????????????????????? | | G"""?????????????????????????????????????????????? | | ##???????????????????????????????????????????????? | | ?????????????????????????????????????????????????? | | ?????????????????????????????????????????????????? | | ?????????????????????????????????????????????????? | | ?????????????????????????????????????????????????? | | ?????????????????????????????????????????????????? | | ?????????????????????????????????????????????????? | | ?????????????????????????????????????????????????? | | ?????????????????????????????????????????????????? | | ?????????????????????????????????????????????????? | | ?????????????????????????????????????????????????? | | ?????????????????????????????????????????????????? | | ?????????????????????????????????????????????????? | | ?????????????????????????????????????????????????? | | ?????????????????????????????????????????????????? | | ?????????????????????????????????????????????????? | | ?????????????????????????????????????????????????? | | ?????????????????????????????????????????????????? | | ?????????????????????????????????????????????????? | +----------------------------------------------------+ Best States ------------- Heat Dissipation 109 Coolant Potential 200 Energy Generation 85 Energy Capacity 1570 Matter Stores 300 Matter Capacity 300 Sight Range 22 Robot Scan Range 16 Terrain Scan Density 10 ECM Strength 3 Power Amplification 60 Armor Coverage 1200 Resistance: TH 10 Power Shielding 66 Weapon Cycling 25 Phase Shifting 10 Evasion (%) 71 Melee Accuracy 5 Core Analysis 8 Armor Integrity Analysis 40 Recoil Reduction 6 Offensive Hacking 14 Authchip Count 1 Item Schematics ----------------- None Robot Schematics ------------------ None Fabricated ------------ Nothing Alien Tech Used ----------------- None Achievements -------------- Hard Hitter Max Potential More Power To You Revising The Future Challenges ------------ None Game ------ Seed PhaseSkeletonAccelerator Manual? 0 Play Time 02:20:32 Cumulative 103.9 hours Start 2022.10.01 @ 16:23:04 End 2022.10.15 @ 20:57:57 Sessions 9 Manual Loads 0 Difficulty Rogue Special Mode None Game No. 111 Rogue 111 Adventurer 0 Explorer 0 Win Type - Total 0 Types 0/0/0/0/0/0/0/0/0 Lore% 49 Gallery% 62 Achievement% 48 Wizard Run 0 Options --------- ASCII 0 Keyboard 0 Movement Mouse Keybinds 0 Fullscreen 1 Font 18/SmallcapsGlow Map View 76x50 Tactical HUD 1 Map Filters NONE Filters NONE Steam 1 RUN: 4cdb093c-e5d0-4fb9-8920-d87d6e1b1a22